Workbook

Sheet Registro
A1: TITULO | B1: ESTUDIO DE IMPACTO AMBIENTAL: PROCEDIMIENTO Y HERRAMIENTAS
A3: AUTORES | B3: ROBERTO PECHE GONZALEZ
B4: DOLORES ENCINAS MALAGON
B5: ZURIÑE GOMEZ DE BALUGERA LOPEZ DE ALDA
B6: MARIA ARRITOKIETA ORTUZAR IRAGORRI
A8: ISBN: | B8: 978-84-613-9696-2

Sheet 241-243
A1: nº de indicador: | B1: 241 | C1: función de transformación: | D1: CA=1E-02I | E1: 0<I<100
A2: Indicador: | B2: % de la producción
A3: fórmula del indicador
A4: unidad del indicador:
A5: rango de valores del indicador: | B5: 0 - 100 | C5: valor del indicador | D5: 40
A6: Tipo de indicador | B6: 2 (T=0,25) | C6: calidad ambiental | D6: =+D5*0.01 -> 0.40
A7: valor del indicador | B7: calidad ambiental | C7: representación de la función de transformación
A8: 0 | B8: =0.01*A8 -> 0.00
A9: 5 | B9: =0.01*A9 -> 0.05
A10: 10 | B10: 0.10
A11: 15 | B11: 0.15
A12: 20 | B12: 0.20
A13: 25 | B13: 0.25
A14: 30 | B14: 0.30
A15: 35 | B15: 0.35
A16: 40 | B16: 0.40
A17: 45 | B17: 0.45
A18: 50 | B18: 0.50
A19: 55 | B19: 0.55
A20: 60 | B20: 0.60
A21: 65 | B21: 0.65
A22: 70 | B22: 0.70
A23: 80 | B23: 0.80
A24: 90 | B24: 0.90
A25: 95 | B25: 0.95
A26: 100 | B26: 1.00
A29: nº de indicador: | B29: 242 | C29: función de transformación: | D29: CA=4,35E-04I | E29: 0<I<2300
A30: Indicador: | B30: Productividad media | D30: CA=1 | E30: 2300<I<3000
A31: fórmula del indicador
A32: unidad del indicador:
A33: rango de valores del indicador: | B33: 0 - 300 | C33: valor del indicador | D33: 600
A34: Tipo de indicador | B34: 2 (T=0,25) | C34: calidad ambiental | D34: =IF(D33<0,"valor del indicador fuera de rango",IF(D33<=2300,0.000435*(D33),IF(D33<=3000,1,"valor del indicador fuera rango"))) -> 0.261
A35: valor del indicador | B35: calidad ambiental | C35: representación de la función de transformación
A36: 0 | B36: =0.000435*A36 -> 0.000
A37: 100 | B37: =0.000435*A37 -> 0.044
A38: 200 | B38: 0.087
A39: 300 | B39: 0.131
A40: 400 | B40: 0.174
A41: 500 | B41: 0.218
A42: 600 | B42: 0.261
A43: 700 | B43: 0.305
A44: 800 | B44: 0.348
A45: 900 | B45: 0.392
A46: 1000 | B46: 0.435
A47: 1100 | B47: 0.479
A48: 1200 | B48: 0.522
A49: 1300 | B49: 0.566
A50: 1500 | B50: 0.653
A51: 1800 | B51: 0.783
A52: 2000 | B52: 0.870
A53: 2300 | B53: 1.000
A54: 2600 | B54: 1.000
A55: 2700 | B55: 1.000
A56: 3000 | B56: 1.000
A59: nº de indicador: | B59: 243 | C59: función de transformación: | D59: CA= - 1E-04 I^2 + 2E-02I | E59: 0<I<100
A60: Indicador: | B60: Superficie relativa, ponderada según la productividad
A61: fórmula del indicador
A62: unidad del indicador:
A63: rango de valores del indicador: | B63: 0 - 100 | C63: valor del indicador | D63: 60
A64: Tipo de indicador | B64: 2 (T=0,25) | C64: calidad ambiental | D64: =IF(D63<0,"valor del indicador fuera de rango",IF(D63<=100,-0.0001*(D63^2)+0.02*D63,"valor del indicador fuera rango")) -> 0.840
A65: valor del indicador | B65: calidad ambiental | C65: representación de la función de transformación
A66: 0 | B66: =-0.0001*A66^2+0.02*A66 -> 0.000
A67: 5 | B67: =-0.0001*A67^2+0.02*A67 -> 0.098
A68: 10 | B68: 0.190
A69: 15 | B69: 0.278
A70: 20 | B70: 0.360
A71: 25 | B71: 0.438
A72: 30 | B72: 0.510
A73: 35 | B73: 0.578
A74: 40 | B74: 0.640
A75: 45 | B75: 0.698
A76: 50 | B76: 0.750
A77: 55 | B77: 0.798
A78: 60 | B78: 0.840
A79: 65 | B79: 0.878
A80: 70 | B80: 0.910
A81: 75 | B81: 0.938
A82: 80 | B82: 0.960
A83: 85 | B83: 0.978
A84: 90 | B84: 0.990
A85: 95 | B85: 0.998
A86: 100 | B86: 1.000

Sheet 244
A1: nº de indicador: | B1: 244 | C1: función de transformación: | D1: CA=2E-02 I | E1: 0<I<50
A2: Indicador: | B2: % de la producción sometida a pastoreo | D2: CA=1 | E2: 50<I<60
A3: fórmula del indicador | D3: CA= - 3,33E- 0,2I + 3 | E3: 60<I<90
A4: unidad del indicador:
A5: rango de valores del indicador: | B5: 0 - 90 | C5: valor del indicador | D5: 80
A6: Tipo de indicador | B6: 2 (T=0,25) | C6: calidad ambiental | D6: =IF(D5<0,"valor del indicador fuera de rango",IF(D5<=50,0.02*(D5),IF(D5<=60,1,IF(D5<=90,-0.0333*D5+3,"valor del indicador fuera rango")))) -> 0.336
A7: valor del indicador | B7: calidad ambiental | C7: representación de la función de transformación
A8: 0 | B8: =0.02*A8 -> 0.000
A9: 5 | B9: 0.100
A10: 10 | B10: 0.200
A11: 15 | B11: 0.300
A12: 20 | B12: 0.400
A13: 25 | B13: 0.500
A14: 30 | B14: 0.600
A15: 35 | B15: 0.700
A16: 40 | B16: 0.800
A17: 45 | B17: 0.900
A18: 50 | B18: 1.000
A19: 55 | B19: 1.000
A20: 60 | B20: 1.000
A21: 65 | B21: =-0.0333*A21+3 -> 0.836
A22: 70 | B22: =-0.0333*A22+3 -> 0.669
A23: 80 | B23: =-0.0333*A23+3 -> 0.336
A24: 90 | B24: =-0.0333*A24+3 -> 0.003

Sheet 245
A1: nº de indicador: | B1: 245 | C1: función de transformación: | D1: CA=I | E1: 0<I<1
A2: Indicador: | B2: Aptitud para el uso forestal | D2: CA=1 | E2: 1<I<4
A3: fórmula del indicador
A4: unidad del indicador:
A5: rango de valores del indicador: | B5: 0 - 4 | C5: valor del indicador | D5: 3
A6: Tipo de indicador | B6: 3 (T=0,50) | C6: calidad ambiental | D6: =IF(D5<0,"valor del indicador fuera de rango",IF(D5<=1,1*D5,IF(D5<=4,1,"valor del indicador fuera rango"))) -> 1.000
A7: valor del indicador | B7: calidad ambiental | C7: representación de la función de transformación
A8: 0.0 | B8: =A8 -> 0.00
A9: =+A8+0.2 -> 0.2 | B9: 0.20
A10: 0.4 | B10: 0.40
A11: 0.6 | B11: 0.60
A12: 0.8 | B12: 0.80
A13: 1.0 | B13: 1.00
A14: 1.2 | B14: =1 -> 1.00
A15: 1.4 | B15: =1 -> 1.00
A16: 1.6 | B16: =1 -> 1.00
A17: 1.8 | B17: =1 -> 1.00
A18: 2.0 | B18: =1 -> 1.00
A19: 2.2 | B19: =1 -> 1.00
A20: 2.4 | B20: =1 -> 1.00
A21: 2.6 | B21: =1 -> 1.00
A22: 2.8 | B22: =1 -> 1.00
A23: 3.0 | B23: =1 -> 1.00
A24: 3.4 | B24: =1 -> 1.00
A25: 4.0 | B25: =1 -> 1.00
